Cogmind - Beta 17 @@@ ROGUE MODE // 2026.06.25 @ 12:16:07 Player: Lorraine Result: Destroyed by X-62 Marksman with Gauss Rifle Performance ------------- Evolutions (3) 1500 Regions Visited (8) 1600 Robots Destroyed (26) 130 Value Destroyed (830) 830 Prototype IDs (26) 520 Alien Tech Used (0) 0 Bonus (1035) 1035 TOTAL SCORE: 5615 Bonus ------- Follower Combat Kills 35 Entered Garrisons 200 Used RIF Installer 500 Aligned with FarCom 300 Cogmind --------- Core Integrity 0/700 Matter 41/300 Energy 100/100 System Corruption 11% Temperature Cool (0) Movement Core (100) Ox1 Location -7/Factory Parts ------- > --- POWER (2) -------- (None) > --- PROPULSION (3) --- (None) > --- UTILITY (5) ------ Lightpack 2.0 > --- WEAPON (3) ------- (None) > --- INVENTORY (40) --- Improved Ion Engine Improved Deuterium Engine Flight Unit Thermal Generator Improved Heat Sink Improved Cooling System Weight Redist. System Advanced Weight Redist. System Advanced Weight Redist. System Trap Scanner Improved Signal Interpreter Improved Terrain Scan Processor Targeting Computer Recoil Stabilizer Particle Charger Particle Charger Microactuators Advanced ECM Suite Relay Coupler [Swarmer] (28) Relay Coupler [Swarmer] (25) Relay Coupler [Brawler] (27) Relay Coupler [Duelist] (27) Relay Coupler [Demolisher] (18) Particle Gun Autogun Autogun Flak Gun Gauss Cannon Mini Grenade Launcher Datajack Peak State ------------ > --- POWER ------------ Light Nuclear Core > --- PROPULSION ------- Flight Unit VTOL Module VTOL Module > --- UTILITY ---------- Lightpack 2.0 Experimental Sensor Array Improved Signal Interpreter > --- WEAPON ----------- Autogun Datajack > --- INVENTORY -------- Improved Ion Engine Light Nuclear Core Improved Deuterium Engine Flight Unit VTOL Module VTOL Module Thermal Generator Improved Heat Sink Improved Cooling System Weight Redist. System Advanced Weight Redist. System Advanced Weight Redist. System Improved Terrain Scan Processor Targeting Computer Recoil Stabilizer Particle Charger Particle Charger Microactuators Advanced ECM Suite Improved Light Armor Plating Relay Coupler [Swarmer] Relay Coupler [Swarmer] Relay Coupler [Brawler] Relay Coupler [Duelist] Relay Coupler [Demolisher] Component Analysis Suite Autogun Flak Gun Gauss Cannon Mini Grenade Launcher Datajack [Rating: 62] Favorites ----------- Power Light Ion Engine Engine Light Ion Engine Power Core Light Nuclear Core Propulsion Flight Unit Wheel Compact Wheel Flight Unit Flight Unit Utility Lightpack 2.0 Device Experimental Sensor Array Storage Lightpack 2.0 Processor Targeting Computer Hackware Authchip [Processor] Weapon Datajack Energy Gun Heavy EM Pulse Gun Energy Cannon Advanced Beam Cannon Ballistic Gun Minigun Launcher Mini Grenade Launcher Slashing Weapon Makeshift Sword Special Melee Weapon Datajack Build | -11 -10 -10 -10 -9 -8 -7 -7 -7 ------- Run | Yrd Mat Min Exi Min Mat Fac Gar Fac Slots Evolved 6 | . . . . . 4 2 . . Power 1 | . . . . . 1 . . . Propulsion 1 | . . . . . 1 . . . Utility 3 | . . . . . 2 1 . . Weapon 1 | . . . . . . 1 . . Parts Attached 44 | 6 4 1 . 4 22 4 1 2 Power 6 | 1 1 1 . . 3 . . . Engine 4 | 1 1 1 . . 1 . . . Core 2 | . . . . . 2 . . . Reactor . | . . . . . . . . . Propulsion 18 | 2 2 . . 1 11 . . 2 Treads . | . . . . . . . . . Leg . | . . . . . . . . . Wheel 3 | 2 . . . . 1 . . . Hover . | . . . . . . . . . Flight 15 | . 2 . . 1 10 . . 2 Utility 9 | 1 1 . . 1 3 3 . . Device 4 | . . . . 1 2 1 . . Storage 2 | 1 . . . . 1 . . . Processor 2 | . 1 . . . . 1 . . Hackware 1 | . . . . . . 1 . . Protection . | . . . . . . . . . Artifact . | . . . . . . . . . Weapon 11 | 2 . . . 2 5 1 1 . Energy Gun 1 | . . . . . 1 . . . Energy Cannon 2 | . . . . . 2 . . . Ballistic Gun 4 | 2 . . . . 1 . 1 . Ballistic Cannon . | . . . . . . . . . Launcher 1 | . . . . . 1 . . . Special Weapon . | . . . . . . . . . Impact Weapon . | . . . . . . . . . Slashing Weapon 1 | . . . . 1 . . . . Piercing Weapon . | . . . . . . . . . Special Melee Weapon 2 | . . . . 1 . 1 . . Unidentified Prototypes 2 | . . . . . 2 . . . Corrupted Parts 2 | . . . . . 1 1 . . System Corruption 5 | . . . . . 2 3 . . Parts Lost 27 | . . . . . 18 . . 9 Power 4 | . . . . . 3 . . 1 Propulsion 14 | . . . . . 9 . . 5 Utility 3 | . . . . . 1 . . 2 Weapon 6 | . . . . . 5 . . 1 Highest Loss Streak 10 | . . . . . 10 . . 7 To Critical Strikes . | . . . . . . . . . Average Backups 13 | 3 7 8 7 5 11 15 25 31 Power 1 | . 1 . . . 1 1 2 2 Propulsion 2 | 2 2 3 3 2 1 1 2 2 Utility 7 | . . 1 1 2 6 10 16 19 Weapon 1 | . 2 2 1 . 1 1 3 5 Tool/Special . | . . . . . . . . . Unused Backups 37 | . 7 . 2 1 1 1 1 24 Power 4 | . 1 . . . . . . 3 Propulsion 4 | . 4 . . . . . . . Utility 21 | . . . 1 . 1 1 1 17 Weapon 7 | . 2 . 1 . . . . 4 Tool/Special 1 | . . . . 1 . . . . Average Slot Usage (%) 64 | . 85 71 71 77 56 59 68 41 Engine 7 | . 14 14 14 14 4 . . . Core 1 | . . . . . 1 7 6 . Wheel 2 | . 15 . . . 1 . . . Flight 20 | . 11 28 28 28 18 23 23 15 Device 5 | . . . . 5 8 7 7 6 Storage 10 | . 14 14 14 14 8 7 7 7 Processor 6 | . 11 14 14 8 . 4 7 4 Ballistic Gun 3 | . 16 . . . 3 . 3 . Launcher 1 | . . . . . 1 7 3 . Special Melee Weapon 2 | . . . . 5 2 . 7 4 Peak Build Rating 62 | 6 7 5 8 15 52 59 62 59 Average Rating 30 | 4 6 5 5 9 42 55 60 53 On Entrance 23 | . 6 5 5 8 15 52 59 58 Avg Prop Armor Cover (%) 5 | . . . . . 5 . . . Naked Turns . | . . . . . . . . . Heaviest Build 21 | 13 13 8 8 11 21 15 15 12 Greatest Support 32 | 32 32 8 8 14 19 13 13 15 Greatest Overweight (x) 5 | . 4 . . . 5 1 1 1 Average Overweight (x) . | . . . . . . . . . Largest Inventory Capacity 40 | 8 8 8 8 8 40 40 40 40 Average Capacity 25 | 7 8 8 7 8 39 40 40 40 Most Carried 33 | 6 8 8 8 8 16 22 31 33 Average Carried 13 | 3 7 7 7 7 11 15 25 31 Final Capacity 40 | 8 8 8 8 8 40 40 40 40 Final Carried 31 | 6 8 8 8 7 12 21 31 30 Class Distribution -------------------- 44% | Mutant 28% | Hauler-Mutant 22% | Hauler-Scout 3% | Hauler-Assassin Dominant Class ---------------- Mutant | -10/Materials Mutant | -10/Mines Mutant | -10/Exiles Mutant | -9/Mines Hauler-Mutant | -8/Materials Hauler-Scout | -7/Factory Hauler-Assassin | -7/Garrison Hauler-Scout | -7/Factory Resources | -11 -10 -10 -10 -9 -8 -7 -7 -7 ----------- Run | Yrd Mat Min Exi Min Mat Fac Gar Fac Matter Collected 676 | 239 32 59 . 40 294 . 12 . Remotely . | . . . . . . . . . Salvage Created 612 | . 51 . . . 512 . 49 . Parts 55 | . 8 . . . 42 . 5 . Haulers Intercepted . | . . . . . . . . . Recyclers Shooed . | . . . . . . . . . Parts Field Recycled . | . . . . . . . . . Retrieved Matter . | . . . . . . . . . Parts Self-Destructed . | . . . . . . . . . Prevented . | . . . . . . . . . Parts Restored . | . . . . . . . . . Kills | -11 -10 -10 -10 -9 -8 -7 -7 -7 ------- Run | Yrd Mat Min Exi Min Mat Fac Gar Fac Combat Hostiles Destroyed 24 | . 3 . . . 18 . 3 . Guns 10 | . 3 . . . 7 . . . Cannons 2 | . . . . . 2 . . . AOE 12 | . . . . . 9 . 3 . Classes Destroyed 6 | . 1 . . . 5 . . . Builder 1 | . . . . . 1 . . . Recycler 1 | . . . . . 1 . . . Swarmer 16 | . 3 . . . 10 . 3 . Grunt 4 | . . . . . 4 . . . Sentry 2 | . . . . . 2 . . . Hunter 2 | . . . . . 2 . . . Best Kill Streak 10 | . 3 . . . 10 . 3 . Combat Bots Only 8 | . 3 . . . 8 . 3 . Max Kills in Single Turn 2 | . 1 . . . 2 . 2 . Gunslinging . | . . . . . . . . . Exploded 2 | . . . . . 2 . 2 . Melee . | . . . . . . . . . Uniques/NPCs Destroyed . | . . . . . . . . . Combat | -11 -10 -10 -10 -9 -8 -7 -7 -7 -------- Run | Yrd Mat Min Exi Min Mat Fac Gar Fac Hostile Shots Fired 334 | . 26 6 . . 211 . 6 85 Missed 129 | . 10 4 . . 94 . 3 18 Hits 205 | . 16 2 . . 117 . 3 67 Melee 2 | . . . . . . . . 2 Projectile 203 | . 16 2 . . 117 . 3 65 Critical Strikes 3 | . . . . . 2 . . 1 Damage Taken 2806 | . 153 17 . . 1445 . 74 1117 Core 1297 | . 70 . . . 518 . 10 699 Absorbed by Shields . | . . . . . . . . . Regen/Repaired (Parts) 5 | . 5 . . . . . . . Core Remaining (%) 59 | 100 . . . 72 5 . . . Volleys Fired 50 | . 5 . . . 42 . 3 . Largest 2 | . 2 . . . 2 . 1 . Hottest 113 | . 40 . . . 113 . 30 . Shots Fired 68 | . 10 . . . 55 . 3 . Gun 43 | . 10 . . . 32 . 1 . Cannon 12 | . . . . . 12 . . . Launcher 13 | . . . . . 11 . 2 . Special . | . . . . . . . . . Kinetic 32 | . 10 . . . 21 . 1 . Thermal 12 | . . . . . 12 . . . Explosive 13 | . . . . . 11 . 2 . Electromagnetic 11 | . . . . . 11 . . . Robot Hit Streak 4 | . 3 . . . 4 . . . Robot Miss Streak 5 | . 3 . . . 5 . . . Penetration Max . | . . . . . . . . . Secondary Targets 1 | . 1 . . . . . . . Max Gunslinging Chain 1 | . 1 . . . . . . . Shots Hit Robots 36 | . 5 . . 1 27 . 1 2 Core Hits 34 | . 5 . . . 27 . 2 . Critical Kills 1 | . . . . . 1 . . . Critical Parts Destroyed . | . . . . . . . . . Critical Strikes 1 | . . . . . 1 . . . Destroy 1 | . . . . . 1 . . . Melee Attacks 15 | . . . . 1 3 6 3 2 Impact . | . . . . . . . . . Slashing . | . . . . . . . . . Piercing . | . . . . . . . . . Sneak Attacks 3 | . . . . 1 . . . 2 Combat Hostiles . | . . . . . . . . . Follow-up Attacks . | . . . . . . . . . Damage Inflicted 1619 | . 48 . . . 1332 . 212 27 Guns 342 | . 48 . . . 294 . . . Cannons 144 | . . . . . 144 . . . Explosions 1106 | . . . . . 894 . 212 . Melee . | . . . . . . . . . Ramming 27 | . . . . . . . . 27 Kinetic 285 | . 48 . . . 237 . . . Thermal 144 | . . . . . 144 . . . Explosive 1106 | . . . . . 894 . 212 . Electromagnetic 57 | . . . . . 57 . . . Impact . | . . . . . . . . . Slashing . | . . . . . . . . . Piercing . | . . . . . . . . . Highest Corruption 11 | . . . . . 2 3 3 11 Average Corruption 3 | . . . . . 2 3 3 5 Corruption Purged . | . . . . . . . . . Corruption Blocked . | . . . . . . . . . Effects 17 | . . . . . 3 4 4 6 Message Errors 3 | . . . . . . 1 1 1 Matter Fused 2 | . . . . . . 1 . 1 Heat Flow Errors 4 | . . . . . 1 1 1 1 Energy Discharges 4 | . . . . . . 1 1 2 Parts Rejected 1 | . . . . . 1 . . . Data Loss (minor) 2 | . . . . . . . 1 1 Data Loss (major) 1 | . . . . . 1 . . . Overload Shots . | . . . . . . . . . Overflow Damage 98 | . . . . . 57 . 41 . Projectiles . | . . . . . . . . . Explosions 98 | . . . . . 57 . 41 . Melee . | . . . . . . . . . Knockbacks . | . . . . . . . . . Impact . | . . . . . . . . . Kinetic . | . . . . . . . . . Secondary . | . . . . . . . . . Self-Inflicted Damage 91 | . . . . . 47 . 32 12 Shots 3 | . . . . . 2 . 1 . Rammed 8 | . . . . . . . . 8 Targets Rammed 8 | . . . . . . . . 8 Kicked . | . . . . . . . . . Crushed . | . . . . . . . . . Highest Temperature 607 | . . . . . 607 224 172 210 Average Temperature 186 | . . . . . 223 129 86 116 Received Heat Transfer 603 | . 33 . . . 297 . . 273 Effects 10 | . . . . . 10 . . . Shutdowns 1 | . . . . . 1 . . . Energy Bleed 3 | . . . . . 3 . . . Interference 2 | . . . . . 2 . . . Matter Decay 1 | . . . . . 1 . . . Damage (major) 2 | . . . . . 2 . . . Damage (core) 1 | . . . . . 1 . . . Siege Activations . | . . . . . . . . . Martial Activations . | . . . . . . . . . Shielding Activations . | . . . . . . . . . Robots Disrupted . | . . . . . . . . . Combat Hostiles . | . . . . . . . . . Robots Corrupted . | . . . . . . . . . Combat Hostiles . | . . . . . . . . . Parts Fried . | . . . . . . . . . Impact Corruptions . | . . . . . . . . . Robots Melted . | . . . . . . . . . Combat Hostiles . | . . . . . . . . . Parts Melted . | . . . . . . . . . Heat Transferred 259 | . . . . . 259 . . . Parts Sabotaged . | . . . . . . . . . Parts Stolen . | . . . . . . . . . Parts Stripped . | . . . . . . . . . Power Chain Reactions . | . . . . . . . . . Alert | -11 -10 -10 -10 -9 -8 -7 -7 -7 ------- Run | Yrd Mat Min Exi Min Mat Fac Gar Fac Maximum Alert Level 1 | . . . . . 1 . . . Low Security (%) 96 | 100 100 100 . 100 87 100 100 100 Level 1 3 | . . . . . 12 . . . Level 2 . | . . . . . . . . . Level 3 . | . . . . . . . . . Level 4 . | . . . . . . . . . Level 5 . | . . . . . . . . . High Security . | . . . . . . . . . Max Security . | . . . . . . . . . Peak Influence 352 | . 85 25 . 186 352 152 159 83 Initial 152 | . . 25 . . 29 152 43 83 Average 73 | . 30 12 . 94 101 108 103 37 Influence Increases 1261 | . 125 . . 206 709 . 116 105 Destroy 0b10 Robot/C 600 | . 60 . . 120 360 . 60 . Destroy 0b10 Robot/NC 15 | . . . . 5 10 . . . Destroy Leader 110 | . 10 . . 20 80 . . . Allied During Kill 1 | . . . . 1 . . . . Successful Hack 15 | . 10 . . . 5 . . . Disable Machine 30 | . . . . . 30 . . . Anti-Garrison Action 50 | . . . . . . . 50 . Destroy Structure 50 | . . . . . 44 . 6 . Partial Spotted 45 | . . . . . 45 . . . Lose Combat Pursuer 345 | . 45 . . 60 135 . . 105 Influence Decreases 1226 | . 60 65 . 130 449 274 19 229 Entered New Map 366 | . . 40 . . 47 184 19 76 Time Decay 620 | . 60 25 . 110 232 90 . 103 Lost Part 220 | . . . . . 170 . . 50 Lost Ally 20 | . . . . 20 . . . . Squads Dispatched 10 | . 1 . . 1 3 . . 5 Investigation 5 | . . . . . 2 . . 3 Extermination 1 | . . . . . . . . 1 Reinforcement 3 | . 1 . . . 1 . . 1 Assault 1 | . . . . 1 . . . . Garrison . | . . . . . . . . . Intercept . | . . . . . . . . . Searches Triggered . | . . . . . . . . . Construction Impeded . | . . . . . . . . . Haulers Reinforced . | . . . . . . . . . Active Scanning Responses . | . . . . . . . . . Cargo Convoy Interrupts . | . . . . . . . . . Stealth | -11 -10 -10 -10 -9 -8 -7 -7 -7 --------- Run | Yrd Mat Min Exi Min Mat Fac Gar Fac Distress Signals 3 | . 1 . . . 1 . . 1 Communications Jammed . | . . . . . . . . . Distress Signals . | . . . . . . . . . Times Spotted 75 | . 13 3 . 5 33 1 3 17 Peak Tracking Total 11 | . 7 3 . 7 11 1 3 8 Tactical Retreats 10 | . 1 . . 1 5 . . 3 Traps | -11 -10 -10 -10 -9 -8 -7 -7 -7 ------- Run | Yrd Mat Min Exi Min Mat Fac Gar Fac Traps Triggered 2 | . . . . . . 1 . 1 Indirectly . | . . . . . . . . . Trap Hack Attempts . | . . . . . . . . . Triggered . | . . . . . . . . . Disarmed . | . . . . . . . . . Reprogrammed . | . . . . . . . . . Reused . | . . . . . . . . . Traps Extracted . | . . . . . . . . . Installed . | . . . . . . . . . Triggered . | . . . . . . . . . Machines | -11 -10 -10 -10 -9 -8 -7 -7 -7 ---------- Run | Yrd Mat Min Exi Min Mat Fac Gar Fac Machines Disabled 3 | . . . . . 2 . 1 . Max in Single Turn 1 | . . . . . 1 . 1 . Garrison Relay 1 | . . . . . . . 1 . Machines Repaired . | . . . . . . . . . Machines Dismantled . | . . . . . . . . . Machines Sabotaged . | . . . . . . . . . Overloaded Fab Kills . | . . . . . . . . . Hacking | -11 -10 -10 -10 -9 -8 -7 -7 -7 --------- Run | Yrd Mat Min Exi Min Mat Fac Gar Fac Machines Accessed 20 | . 2 . 5 . 5 4 . 4 Terminals 6 | . 1 . . . 2 2 . 1 Fabricators 1 | . . . . . . 1 . . Repair Stations 2 | . 1 . . . . . . 1 Recycling Units 2 | . . . . . 1 . . 1 Scanalyzers 3 | . . . . . 2 . . 1 Garrison Access 1 | . . . . . . 1 . . Total Hacks 87 | . 5 . 50 . 12 9 . 11 Successful 69 | . 4 . 50 . 6 3 . 6 Failed 17 | . 1 . . . 6 6 . 4 Catastrophic . | . . . . . . . . . Database Lockouts 1 | . . . . . . . . 1 Manual 1 | . . . 1 . . . . . Terminals 15 | . 3 . . . 4 6 . 2 Fabricators 2 | . . . . . . 2 . . Repair Stations 5 | . 2 . . . . . . 3 Recycling Units 4 | . . . . . 1 . . 3 Scanalyzers 10 | . . . . . 7 . . 3 Garrison Access 1 | . . . . . . 1 . . Terminal Hacks 57 | . 2 . 50 . 3 1 . 1 Record 52 | . 1 . 49 . 2 . . . Open DSF 2 | . . . . . . 1 . 1 Branch Access Points 1 | . 1 . . . . . . . Dispatch Records 1 | . . . . . 1 . . . Proto ID Catalog 1 | . . . 1 . . . . . Fabricator Hacks 1 | . . . . . . 1 . . Network Status 1 | . . . . . . 1 . . Repair Station Hacks 3 | . 2 . . . . . . 1 Scan Component 2 | . 1 . . . . . . 1 Repair 1 | . 1 . . . . . . . Recycling Unit Hacks 3 | . . . . . 1 . . 2 Process 1 | . . . . . . . . 1 Retrieve Matter 1 | . . . . . . . . 1 Retrieve Components 1 | . . . . . 1 . . . Scanalyzer 4 | . . . . . 2 . . 2 Retrieve Study 4 | . . . . . 2 . . 2 Garrison Access Hacks 1 | . . . . . . 1 . . Unlock Access 1 | . . . . . . 1 . . Unauthorized Hacks . | . . . . . . . . . Terminals . | . . . . . . . . . Fabricators . | . . . . . . . . . Repair Stations . | . . . . . . . . . Recycling Units . | . . . . . . . . . Scanalyzers . | . . . . . . . . . Garrison Access . | . . . . . . . . . Data Cores Recovered . | . . . . . . . . . Used . | . . . . . . . . . Hacking Detections 12 | . 1 . . . 5 3 . 3 Full Trace Events 6 | . 1 . . . 2 . . 3 Feedback Events 1 | . . . . . . . . 1 Corruption 1 | . . . . . . . . 1 Feedback Blocked . | . . . . . . . . . Robot Schematics Acquired . | . . . . . . . . . Robots Built . | . . . . . . . . . Authchips . | . . . . . . . . . Time . | . . . . . . . . . Total Robot Build Rating . | . . . . . . . . . Part Schematics Acquired . | . . . . . . . . . Parts Built . | . . . . . . . . . Authchips . | . . . . . . . . . Time . | . . . . . . . . . Total Part Build Rating . | . . . . . . . . . Part Studies Acquired 4 | . . . . . 2 . . 2 Parts Repaired 1 | . 1 . . . . . . . Time 26 | . 26 . . . . . . . Parts Recycled . | . . . . . . . . . Recycled Matter 39 | . . . . . . . . 39 Retrieved Matter . | . . . . . . . . . Retrieved Components 4 | . . . . . 4 . . . Parts Scanalyzed . | . . . . . . . . . Part Schematics Acquired . | . . . . . . . . . Parts Damaged . | . . . . . . . . . Bothacking | -11 -10 -10 -10 -9 -8 -7 -7 -7 ------------ Run | Yrd Mat Min Exi Min Mat Fac Gar Fac Used RIF Installer 1 | . . . . . . . 1 . Robots Hacked 4 | . . . . 1 1 . 1 1 Non-combat 2 | . . . . 1 . . . 1 Combat 2 | . . . . . 1 . 1 . Robot Hacks Applied 4 | . . . . 1 1 . 1 1 parse_system 3 | . . . . 1 1 . 1 . no_distress 1 | . . . . . . . . 1 Relay Couplers Released 5 | . . . . . . . 5 . Machine Destruction 5 | . . . . . . . 5 . Fabnet Peak Effective % . | . . . . . . . . . Robots Rewired . | . . . . . . . . . Allies Hacked . | . . . . . . . . . Hacks Repelled . | . . . . . . . . . Allies | -11 -10 -10 -10 -9 -8 -7 -7 -7 -------- Run | Yrd Mat Min Exi Min Mat Fac Gar Fac Total Allies 1 | . . . . 1 . . . . Largest Group 1 | . . . . 1 . . . . Highest-Rated Group 31 | . . . . 31 . . . . Highest-Rated Ally 31 | . . . . 31 . . . . Total Orders . | . . . . . . . . . Ally Attacks 23 | . . . . 23 . . . . Total Damage 306 | . . . . 306 . . . . Kills 7 | . . . . 7 . . . . Allies Corrupted . | . . . . . . . . . Allies Melted . | . . . . . . . . . Intel | -11 -10 -10 -10 -9 -8 -7 -7 -7 ------- Run | Yrd Mat Min Exi Min Mat Fac Gar Fac Active Infowar (turns) 600 | . . . . . 41 188 152 219 Sensors 600 | . . . . . 41 188 152 219 ECM 15 | . . . . . . 15 . . Robot Analysis Total . | . . . . . . . . . Derelict Logs Recovered 4 | . . 1 . 3 . . . . Drone Launches . | . . . . . . . . . Drone Recoveries . | . . . . . . . . . Exploration | -11 -10 -10 -10 -9 -8 -7 -7 -7 ------------- Run | Yrd Mat Min Exi Min Mat Fac Gar Fac Turns Passed 2005 | 94 237 69 242 269 502 191 152 249 Spaces Moved 3636 | 81 289 179 630 668 757 398 285 349 Core 41 | 3 1 . . . 1 . . 36 Treads . | . . . . . . . . . Legs . | . . . . . . . . . Wheels 248 | 78 106 . . . 64 . . . Hover . | . . . . . . . . . Flight 3347 | . 182 179 630 668 692 398 285 313 Fastest Speed 29 | 50 37 37 37 37 29 30 30 29 Average Speed 41 | 98 61 37 37 37 40 32 44 39 Slowest Speed 440 | 100 280 37 37 37 440 110 110 112 Overloaded Moves . | . . . . . . . . . Propulsion Burnouts . | . . . . . . . . . Robots Hopped 27 | . 3 . . 2 9 . . 13 Potential Cave-ins . | . . . . . . . . . Cave-ins Triggered . | . . . . . . . . . Exploration Rate (%) 35 | 3 36 26 73 86 56 7 23 6 Regions Visited 8 Branch Regions 3 Pre-discovered Areas 1 | . . . 1 . . . . . Known Exits Taken 3 | . 1 . . . 1 1 . . Unknown Exits Taken 4 | 1 . 1 1 1 . . . . Scrap Searched 3 | . . 1 . 2 . . . . Spaces Dug 13 | . . . . . . . 13 . Terrain Destroyed 53 | . . . . . 40 . 13 . Melee . | . . . . . . . . . Projectile . | . . . . . . . . . AOE 53 | . . . . . 40 . 13 . Terrain Rammed . | . . . . . . . . . Walls Destroyed . | . . . . . . . . . Machines Disabled . | . . . . . . . . . Actions | -11 -10 -10 -10 -9 -8 -7 -7 -7 --------- Run | Yrd Mat Min Exi Min Mat Fac Gar Fac Total 4037 | 92 342 181 640 688 889 456 304 445 Wait 174 | . 18 . . 6 39 16 3 92 Move 3574 | 80 282 178 629 663 739 397 283 323 Hop 26 | . 3 . . 2 8 . . 13 Pick Up 76 | 6 13 1 5 7 18 13 10 3 Fast Attach 24 | 6 4 . 1 . 12 1 . . Attach 24 | . . . . 2 17 2 . 3 Detach 14 | . 2 . . . 9 1 1 1 Swap 9 | . . 1 . 2 1 4 1 . Drop 28 | . 15 1 5 5 1 1 . . Fire 50 | . 5 . . . 42 . 3 . Melee 15 | . . . . 1 3 6 3 2 Ram 8 | . . . . . . . . 8 Kick . | . . . . . . . . . Crush . | . . . . . . . . . Escape Stasis 15 | . . . . . . 15 . . Rewire . | . . . . . . . . . Trap . | . . . . . . . . . Miscellaneous . | . . . . . . . . . Route ------- -11/Scrapyard -10/Materials (discovered 2 exits: [*Mat] / *Min) -10/Mines -10/Exiles (discovered 2 exits: [*Min x2]) -9/Mines -8/Materials -7/Factory -7/Garrison -7/Factory History --------- Turn | Location | Event 23 | -11/Scrapyard | Discovered new exit (range 16) 95 | -11/Scrapyard | Entered Materials 202 | -10/Materials | Identified exit to Mines 309 | -10/Materials | Repaired Flight Unit 310 | -10/Materials | Build established: Mutant 323 | -10/Materials | Discovered new exit (range 14) 332 | -10/Materials | Entered Mines 356 | -10/Mines | Learned 4 Materials zone layouts 358 | -10/Mines | Deemed a non-threat by the Exiles lab entrance 358 | -10/Mines | Discovered new exit (range 5) 370 | -10/Mines | YI-UF0 nonchalantly dropped a Grenade Launcher on the ground 401 | -10/Mines | Entered Exiles 413 | -10/Exiles | Discovered new exit (range 14) 420 | -10/Exiles | Met 8R-AWN 426 | -10/Exiles | Met EX-HEX 449 | -10/Exiles | Met EX-DEC 464 | -10/Exiles | Met EX-BIN 524 | -10/Exiles | Learned location of Zion (-6) 552 | -10/Exiles | Aligned with FarCom system 553 | -10/Exiles | Given EX-Vault access code 577 | -10/Exiles | Opened EX-Vault 587 | -10/Exiles | Found Lightpack 2.0 612 | -10/Exiles | Warned to stay clear of 0b10 Research branches 638 | -10/Exiles | Discovered new exit (range 14) 643 | -10/Exiles | Left Exiles lab with Lightpack 2.0 643 | -10/Exiles | Entered Mines 644 | -9/Mines | Met a Derelict testing a Signal Generator 648 | -9/Mines | Found Signal Generator 655 | -9/Mines | Found a damaged Exp. Sensor Array with a note attached 658 | -9/Mines | Met a Derelict bent on vengeance 658 | -9/Mines | Found Prototype Device 671 | -9/Mines | Learned Materials emergency access door positions 715 | -9/Mines | Learned location of 1 exit from Materials 768 | -9/Mines | A weapon hastily lodged in a ceiling crevice suddenly fell to the ground 879 | -9/Mines | Learned Materials terminal intel 879 | -9/Mines | Discovered new exit (range 5) 912 | -9/Mines | Entered Materials 912 | -8/Materials | Evolved 4 slots: Power x1, Propulsion x1, Utility x2 913 | -8/Materials | Identified exit to Factory 916 | -8/Materials | Loaded intel: 12 terminal locations 1161 | -8/Materials | Core integrity fell below 50% 1196 | -8/Materials | Lost 10 parts (2p5n3w) 1211 | -8/Materials | Build established: Hauler-Mutant 1348 | -8/Materials | Core integrity fell below 20% 1373 | -8/Materials | Identified Exp. Sensor Array 1379 | -8/Materials | Destroyed 8 combat bots 1412 | -8/Materials | Lost 6 parts (1p3n1u1w) 1414 | -8/Materials | Entered Factory 1414 | -7/Factory | Evolved 2 slots: Utility x1, Weapon x1 1544 | -7/Factory | Identified exit to DSF 1605 | -7/Factory | Identified exit to Garrison 1605 | -7/Factory | Entered Garrison 1633 | -7/Garrison | Triggered checkpoint 1651 | -7/Garrison | Discovered new exit (range 10) 1656 | -7/Garrison | Installed Relay Interface Framework 1663 | -7/Garrison | Triggered checkpoint 1688 | -7/Garrison | Garrison Relay disabled 1757 | -7/Garrison | Identified exit to Factory 1757 | -7/Garrison | Entered Factory 1809 | -7/Factory | Central database locked down 1935 | -7/Factory | System corruption reached 10% 1969 | -7/Factory | Lost 7 parts (1p4n1u1w) 1992 | -7/Factory | Core integrity fell below 50% 2001 | -7/Factory | Core integrity fell below 20% 2006 | -7/Factory | Destroyed by X-62 Marksman with Gauss Rifle Last Messages --------------- Destabilizing: System corrupted (+2). System corrupted: Matter fused (-8). Lgt. Nuclear Core+ destroyed. Slammed into G-47 Trooper. VTOL Module+ destroyed. Slammed into G-47 Trooper. Slammed into T-07 Excavator. ALERT: Suspicious intruders detected, dispatching Specialist reinforcements to area. [Achievement: Heavy Suspicion] O7UFO9%YAOWUMSV8HJPHHLVH 7N1 8 ALERT: Potential suspicious activity detected, Programmers report to Factory Zone 1F. Exp. Sensor Array destroyed. Slug penetrates H-55 Commando. Slammed into H-55 Commando. Penetrated by Slug. System corrupted: Component data lost. Slug penetrates Power Conduit. Penetrated by Slug. Map ----- +----------------------------------------------------+ | ?????????????????????????????????????????????????? | | ?????????????????????????????????????????????????? | | ?????????????????????????????????????????????????? | | ?????????????????????????????????????????????????? | | ?????????????????????????????????????????????????? | | ?????????????????????????????????????????????????? | | ?????????????????????????????????????????????????? | | ?????????????? ????????????????????????????????? | | ?????????????? #???????????????????????????????? | | ?????????????? #???????????????????????????????? | | ?????????????+ #???????????????????????????????? | | ?????????????# #???????????????????????????????? | | ?????????????# ###T????????????????????????????? | | ????########## ?????????????????????????????? | | ????# ??????????????????????????????? | | ????# ???????????????????????????????? | | ??### """ ]]/#????????###?????????????????????? | | ??#"" """ ]]/#???????# ????????????????????? | | ??#"F """g ]/ #???????# ?????????????????? | | ??#"" g #???????# """"""""???#???????????? | | ??#"" "" [! #???????# ?? #???????????? | | ????# "Y [! #???????# """"""""" #???????????? | | ????# "" [ #???????# #???????????? | | ????# #???????# """"""""" #???????????? | | ????# #???????#h #???H???????? | | ????# ##"T"#### #???????#@""""""""" #???????????? | | ????# ##"""#??# #???????# x #???????????? | | ????# ######??# #???????#g""""""""" #???????????? | | ????# #???????# #???????# gxggb #????#??????? | | ????# #???????# #???????########+#####??? #??????? | | ????# #???????# #??????????????# #??????? #??????? | | ????# #???????# ################ #??????? #??????? | | ????# #???????# # # # ######## #??????? | | ????# #???????# # # """" + #??????? | | ????# #???????# # # """" ####### #??????? | | ????# #???????# # # """" #?????# #??????? | | ????# #???????# + # """" #?????# #??????? | | ????# #???????# # # #?????# #??????? | | ????# #???????#Y# ########?????# #??????? | | ????# #???????# # #?????######?# +??????? | | ????# #???????# # #?????# # #??????? | | ????# #???????# # #?????# # #####??? | | ????# #???????# # #?????# + | | ????# #???????# #########?????# # ##+#####/## | | ????# #???????# #?????????????# ??# # # | | ????# #???????# #?????????????# ????# + !!! # | | ????# #???????# #?????????????#??????# # !!! # | | ????# #???????# ########?????????????# # !! # | | ????# #???????# ## ############### #? # | | ????# #???????# ## # # #?? ! * # | +----------------------------------------------------+ Best States ------------- Heat Dissipation 34 Energy Generation 15 Energy Capacity 250 Matter Stores 300 Matter Capacity 300 Sight Range 16 Robot Scan Range 20 Terrain Scan Density 10 ECM Strength 2 Additional Mass Support 6 Evasion (%) 64 Targeting Accuracy 5 Authchip Count 1 Item Schematics ----------------- None Robot Schematics ------------------ None Fabricated ------------ Nothing Repaired ---------- Flight Unit | 75% | -10/Materials Studied --------- Flight Unit | -8/Materials | Hacked Lgt. Ion Engine | -8/Materials | Hacked VTOL Module | -7/Factory | Hacked Lgt. Nuclear Core | -7/Factory | Hacked Alien Tech Used ----------------- None Achievements -------------- A Problem For Future Me Analysis Probe Heavy Suspicion Join The Dark Side Not Today, Chutes Sixth Sense Well Done Challenges ------------ None Game ------ Seed ChipSupersonicSpecial Manual? 0 Play Time 01:35:19 Cumulative 18.6 hours Start 2026.06.25 @ 10:35:22 End 2026.06.25 @ 12:16:07 Sessions 1 Manual Loads 0 Difficulty Rogue Special Mode None Game No. 31 Rogue 31 Adventurer 0 Explorer 0 Win Type - Total 0 Types 0/0/0/0/0/0/0/0/0/0 Lore% 9 Gallery% 15 Achievement% 14 Wizard Run 0 Options --------- Layout 1 ASCII 1 Keyboard 1 Movement Arrows Keybinds 0 Fullscreen 1 Font 24/Smallcaps Map View 50x35 Zoom Use 0% Tactical HUD 0 Map Filters NONE Filters NONE Steam 1 RUN: d5a76a4d-dddc-4e39-987d-20327241460c